lending/lending_fUSD_20240219
["ID","MTS","AMOUNT","RATE_DAILY","PERIOD"]
[314474122,1708372159178,-550.0,0.00025,3]
[314474123,1708372159199,-851.24473156,0.00025,2]
[314474124,1708372159222,-222.79,0.00025621,2]
[314474125,1708372159241,-30185.69,0.00025706,2]
[314474126,1708372159262,-150.0,0.00025783,2]
[314474127,1708372159282,-500.0,0.00025788,2]
[314474128,1708372159302,-250.0,0.00025788,2]
[314474129,1708372159321,-2390.95,0.00025949,2]
[314474130,1708372159341,-178.55,0.00026169,2]
[314474131,1708372159360,-3950.76,0.00026182,2]
[314474132,1708372159380,-6130.37,0.00026319,2]
[314474133,1708372159400,-150.0,0.00026331,2]
[314474134,1708372159424,-1076.35,0.0002634,2]
[314474135,1708372159468,-3811.63,0.00026392,2]
[314474136,1708372159510,-499.99,0.0002661,2]
[314474137,1708372159551,-9999.99,0.0002661,2]
[314474138,1708372159579,-67762.53371627,0.0002661,2]
[314474139,1708372160356,-150.0,0.00025536,2]
[314474140,1708372160376,-6701.49628373,0.0002661,2]
[314474141,1708372160395,-7932.18,0.0002661,2]
[314474142,1708372160415,-250.0,0.00026727,2]
[314474143,1708372160435,-2819.47,0.00026783,2]
[314474144,1708372160456,-56836.66,0.00026783,2]
[314474145,1708372160478,-150.0,0.00026879,2]
[314474146,1708372160498,-200.0,0.00026883,2]
[314474147,1708372160519,-555.40159843,0.000269,2]
[314474148,1708372160540,-1852.42,0.00026908,2]
[314474149,1708372160559,-9201.41,0.00026949,2]
[314474150,1708372160579,-600.0,0.00027,3]
[314474151,1708372160599,-1215.09,0.00027022,2]
[314474152,1708372160618,-555.4015984,0.00027296,2]
[314474153,1708372160639,-150.0,0.00027427,2]
[314474154,1708372160658,-210.0,0.00027493,2]
[314474155,1708372160678,-210.0,0.00027493,2]
[314474156,1708372160698,-5688.75812138,0.00027561,2]
[314474157,1708372160720,-1060.51604774,0.00027609,2]
[314474158,1708372160740,-62495.41635032,0.00027611,2]
[314474159,1708372168118,-16662.25364968,0.00027611,2]
[314474160,1708372168138,-200.0,0.00027661,2]
[314474161,1708372168158,-3520.12,0.00027661,2]
[314474162,1708372168178,-272.72,0.00027661,2]
[314474163,1708372168199,-555.4015984,0.00027692,2]
[314474164,1708372168219,-2373.53,0.00027716,2]
[314474165,1708372168242,-500.0,0.00027716,2]
[314474166,1708372168262,-3637.93075192,0.0002775,2]
[314474176,1708372231643,-150.0,0.0002561,2]
[314474177,1708372231653,-150.0,0.00026158,2]
[314474178,1708372231662,-150.0,0.00026706,2]
[314474179,1708372231672,-10414.04,0.0002701,2]
[314474180,1708372231682,-250.0,0.0002701,2]
[314474181,1708372231692,-11638.4,0.00027034,2]
[314474182,1708372231702,-922.59,0.00027088,2]
[314474183,1708372231712,-2000.0,0.00027194,2]
[314474184,1708372231722,-750.0,0.00027194,2]
[314474185,1708372231732,-150.0,0.00027254,2]
[314474186,1708372231743,-150.1927387,0.00027722,2]
[314474187,1708372231753,-712.73924808,0.0002775,2]
[314474188,1708372231763,-1000.0,0.0002779,2]
[314474189,1708372231774,-150.0,0.00027802,2]
[314474190,1708372231784,-500.0,0.00027803,2]
[314474191,1708372231794,-500.0,0.00027803,2]
[314474192,1708372231803,-11900.0,0.00027804,2]
[314474193,1708372231813,-1783.97,0.00027804,2]
[314474194,1708372231822,-999.99,0.00027855,2]
[314474195,1708372231832,-1000.0,0.00027867,2]
[314474196,1708372231841,-5768.12,0.00027906,2]
[314474197,1708372231851,-200.0,0.00027927,2]
[314474198,1708372231861,-1000.0,0.00027943,2]
[314474199,1708372231871,-150.0,0.00027947,2]
[314474200,1708372231881,-200.0,0.00027951,2]
[314474201,1708372231890,-2045.5,0.00027951,2]
[314474202,1708372231900,-6130.37,0.00027963,2]
[314474203,1708372231909,-230.86,0.0002799,2]
[314474204,1708372231919,-1000.0,0.00028018,2]
[314474205,1708372231928,-1000.0,0.00028019,2]
[314474206,1708372231937,-163.91,0.00028019,2]
[314474207,1708372231947,-6944.61,0.00028019,2]
[314474208,1708372231956,-555.4015984,0.00028088,2]
[314474209,1708372231965,-1000.0,0.00028095,2]
[314474210,1708372231974,-532.67197017,0.00028148,2]
[314474211,1708372231984,-11377.51624276,0.00028148,2]
[314474212,1708372231993,-1000.0,0.00028171,2]
[314474214,1708372232002,-1678.57,0.00028186,2]
[314474216,1708372232012,-340.87049218,0.00028234,2]
[314474218,1708372232021,-1210.78352147,0.00028243,2]
[314474220,1708372232030,-555505.0,0.00028244,2]
[314474222,1708372232039,-1000.0,0.00028248,2]
[314474223,1708372232049,-1000.0,0.00028324,2]
[314474225,1708372232061,-150.0,0.0002835,2]
[314474228,1708372232070,-1908.4,0.00028399,2]
[314474231,1708372232079,-1000.0,0.000284,2]
[314474234,1708372232089,-3012.19,0.00028443,2]
[314474236,1708372232098,-155.0,0.00028463,2]
[314474238,1708372232110,-1000.0,0.00028476,2]
[314474241,1708372232121,-555.4015984,0.00028483,2]
[314474242,1708372232130,-1000.0,0.00028553,2]
[314474244,1708372232141,-1000.0,0.00028629,2]
[314474246,1708372232151,-1000.0,0.00028705,2]
[314474248,1708372232160,-6518.74,0.00028767,2]
[314474250,1708372232169,-1000.0,0.00028781,2]
[314474252,1708372232178,-1000.0,0.00028857,2]
[314474254,1708372232187,-555.4015984,0.00028879,2]
[314474256,1708372232196,-150.0,0.00028898,2]
[314474258,1708372232206,-180.79,0.0002891,2]
[314474260,1708372232215,-6518.74,0.00028933,2]
[314474261,1708372232224,-1000.0,0.00028934,2]
[314474262,1708372232233,-650.0,0.00029,3]
[314474263,1708372232242,-177.53,0.00029,2]
[314474264,1708372232251,-1000.0,0.0002901,2]
[314474265,1708372232261,-4696.29,0.00029028,2]
[314474266,1708372232271,-1000.0,0.00029086,2]
[314474267,1708372232281,-6518.74,0.00029099,2]
[314474268,1708372232290,-1000.0,0.00029162,2]
[314474269,1708372232299,-1000.0,0.00029239,2]
[314474270,1708372232308,-6518.74,0.00029265,2]
[314474271,1708372232318,-555.4015984,0.00029275,2]
[314474272,1708372232327,-1215.09,0.00029286,2]
[314474273,1708372232336,-298.29,0.00029289,3]
[314474274,1708372232345,-163.91,0.0002942,2]
[314474275,1708372232354,-6518.74,0.00029432,2]
[314474276,1708372232364,-151.91659507,0.00029446,2]
[314474277,1708372232372,-1452.37,0.0002947,2]
[314474278,1708372232383,-1467.36,0.0002947,2]
[314474279,1708372232392,-1471.37,0.0002947,2]
[314474280,1708372232401,-700.04,0.00029471,2]
[314474281,1708372232410,-690.39,0.00029471,2]
[314474282,1708372232419,-214.58,0.00029517,2]
[314474283,1708372232429,-177.53,0.00029548,2]
[314474284,1708372232440,-6518.74,0.00029598,2]
[314474285,1708372232449,-6130.37,0.00029607,2]
[314474286,1708372232459,-555.4015984,0.00029671,2]
[314474287,1708372232468,-330.55781678,0.00029731,2]
[314474288,1708372232477,-6518.74,0.00029764,2]
[314474289,1708372232489,-330.55781676,0.00029816,2]
[314474290,1708372232498,-23900.0,0.00029831,2]
[314474291,1708372232509,-175.01,0.00029831,120]
[314474292,1708372232518,-155.0,0.00029833,2]
[314474293,1708372232528,-366.00002151,0.000299,2]
[314474294,1708372232538,-199.11377918,0.000299,2]
[314474295,1708372232547,-330.55781676,0.000299,2]
[314474296,1708372232557,-6518.74,0.0002993,2]
[314474297,1708372232567,-456537.38564144,0.0003,2]
[314474298,1708372232576,-164.0,0.0003,2]
[314474299,1708372232586,-555.4015984,0.00030067,2]
[314474300,1708372232595,-177.53,0.00030096,2]
[314474301,1708372232604,-6518.74,0.00030096,2]
[314474302,1708372232613,-15647.7,0.00030137,2]
[314474303,1708372232623,-293.0,0.00030243,2]
[314474304,1708372232632,-200.0,0.00030243,2]
[314474305,1708372232641,-6518.74,0.00030263,2]
[314474306,1708372232651,-180.79,0.0003028,2]
[314474307,1708372232661,-157.28,0.00030372,2]
[314474308,1708372232672,-551.48,0.00030404,10]
[314474309,1708372232682,-501.6,0.00030448,2]
[314474310,1708372232692,-555.4015984,0.00030463,2]
[314474311,1708372232701,-214.58,0.00030561,2]
[314474312,1708372232710,-1441.76,0.00030584,2]
[314474313,1708372232720,-348.92472423,0.00030644,2]
[314474314,1708372232731,-238.88,0.00030656,4]
[314474315,1708372232740,-163.91,0.00030821,2]
[314474316,1708372232750,-166.34,0.00030854,2]
[314474317,1708372232759,-555.4015984,0.00030858,2]
[314474318,1708372232769,-150.99,0.00030984,2]
[314474319,1708372232781,-2218.5,0.00030984,2]
[314474320,1708372232791,-700.0,0.00031,3]
[314474321,1708372232800,-551.48,0.00031149,10]
[314474322,1708372232809,-385.9257,0.00031151,10]
[314474323,1708372232819,-150.99,0.00031151,2]
[314474324,1708372232829,-155.0,0.00031203,2]
[314474325,1708372232838,-6130.37,0.0003125,2]
[314474326,1708372232848,-555.4015984,0.00031254,2]
[314474327,1708372232858,-1071.927,0.00031442,2]
[314474328,1708372232867,-1419.11,0.00031537,2]
[314474329,1708372232877,-1439.39,0.00031538,2]
[314474330,1708372232887,-1425.34,0.00031538,2]
[314474331,1708372232897,-1453.17,0.00031538,2]
[314474332,1708372232907,-1450.51,0.00031539,2]
[314474333,1708372232916,-1470.21,0.00031539,2]
[314474334,1708372232926,-18622.28240168,0.0003154,4]
[314474335,1708372232935,-300.0,0.00031541,2]
[314474336,1708372232945,-1423.23,0.00031541,2]
[314474337,1708372232954,-9999.99,0.00031542,2]
[314474338,1708372232963,-552.39,0.00031542,2]
[314474339,1708372232972,-530.88,0.00031542,2]
[314474340,1708372232981,-1215.09,0.0003155,2]
[314474341,1708372232990,-168.01,0.00031585,2]
[314474342,1708372233000,-214.58,0.00031605,2]
[314474343,1708372233009,-10655.5326,0.00031642,2]
[314474344,1708372233019,-180.79,0.0003165,2]
[314474345,1708372233030,-555.4015984,0.0003165,2]
[314474346,1708372233039,-800.0,0.0003166,2]
[314474347,1708372233052,-60634.2450085,0.00031742,2]
[314474348,1708372233061,-39235.28594294,0.000318,2]
[314474349,1708372233576,-51791.68703718,0.000318,2]
[314474350,1708372233591,-578.10578071,0.000318,2]
[314474351,1708372234018,-411.77348506,0.00027001,2]
[314474352,1708372234044,-2293.22651494,0.00027001,2]
[314474353,1708372234056,-127567.60027097,0.000318,2]
[314474354,1708372234068,-186.7457072,0.000318,2]
[314474355,1708372234077,-287.923167,0.00031894,10]
[314474356,1708372234089,-263.556833,0.00031894,10]
[314474357,1708372234098,-153.47710485,0.00032046,2]
[314474358,1708372234146,-401.92449355,0.00032046,2]
[314474359,1708372234156,-163.91,0.00032222,2]
[314474360,1708372234165,-532.67197013,0.00032281,2]
[314474361,1708372234174,-138.40209924,0.00032442,2]
[314474366,1708372237655,-851.24473156,0.00026705,2]
[314474367,1708372237665,-416.99949916,0.00032442,2]
[314474368,1708372237674,-366.0000215,0.00032494,2]
[314474369,1708372237684,-166.34,0.00032551,2]
[314474370,1708372237693,-155.0,0.00032573,2]
[314474371,1708372237703,-551.48,0.00032639,10]
[314474372,1708372237712,-214.58,0.00032649,2]
[314474373,1708372237721,-555.4015984,0.00032838,2]
[314474374,1708372237733,-6130.37,0.00032894,2]
[314474375,1708372237743,-2000.0,0.00033,5]
[314474376,1708372237756,-750.0,0.00033,3]
[314474377,1708372237767,-164.0,0.00033,2]
[314474378,1708372237776,-4378.02,0.00033114,15]
[314474379,1708372237786,-848.11,0.00033114,20]
[314474380,1708372237796,-157.28,0.00033133,2]
[314474381,1708372237805,-555.4015984,0.00033233,2]
[314474382,1708372237815,-551.48,0.00033384,10]
[314474383,1708372237824,-200.0,0.00033604,2]
[314474384,1708372237834,-163.91,0.00033623,2]
[314474385,1708372237843,-555.4015984,0.00033629,2]
[314474386,1708372237853,-214.58,0.00033693,2]
[314474387,1708372237863,-1215.09,0.00033814,2]
[314474388,1708372237872,-153.11577975,0.000339,2]
[314474389,1708372237881,-153.11577974,0.000339,2]
[314474390,1708372237891,-153.11577974,0.000339,2]
[314474391,1708372237900,-153.11577974,0.000339,2]
[314474392,1708372237911,-153.11577974,0.000339,2]
[314474393,1708372237921,-155.0,0.00033943,2]
[314474394,1708372237930,-555.4015984,0.00034025,2]
[314474395,1708372237940,-166.34,0.00034249,2]
[314474396,1708372237949,-2719.0,0.000344,2]
[314474397,1708372237959,-555.4015984,0.00034421,2]
[314474398,1708372237968,-18427.0,0.000345,2]
[314474399,1708372237977,-153.11577974,0.00034516,2]
[314474400,1708372237987,-429.499597,0.0003452,2]
[314474401,1708372237996,-832.963589,0.0003452,2]
[314474402,1708372238005,-890.330066,0.0003452,2]
[314474403,1708372238015,-2059.518353,0.0003452,2]
[314474404,1708372238025,-2179.94599,0.0003452,2]
[314474405,1708372238034,-2297.59,0.00034521,2]
[314474407,1708372238044,-6130.37,0.00034538,2]
[314474408,1708372238056,-214.58,0.00034737,2]
[314474409,1708372238065,-168.01,0.00034744,2]
[314474410,1708372238075,-340.87049218,0.00034785,2]
[314474411,1708372238085,-644.249396,0.00034794,2]
[314474413,1708372238095,-1249.445384,0.00034794,2]
[314474414,1708372238104,-1335.495099,0.00034794,2]
[314474416,1708372238114,-3089.277529,0.00034794,2]
[314474417,1708372238124,-3269.918986,0.00034794,2]
[314474418,1708372238134,-130459.0,0.00034795,4]
[314474419,1708372238145,-1756.11219813,0.000349,2]
[314474420,1708372238155,-1756.11219812,0.000349,2]
[314474421,1708372238164,-1756.11219812,0.000349,2]
[314474422,1708372238173,-1756.11219812,0.000349,2]
[314474424,1708372238183,-858.999195,0.00034931,2]
[314474425,1708372238192,-1665.927179,0.00034931,2]
[314474426,1708372238201,-1780.660132,0.00034931,2]
[314474427,1708372238211,-4119.036706,0.00034931,2]
[314474428,1708372238220,-8700.86,0.00035,3]
[314474429,1708372238229,-800.0,0.00035,3]
[314474430,1708372238238,-14558.55177922,0.00035068,2]
[314474431,1708372238248,-1073.748993,0.00035068,2]
[314474432,1708372238257,-2082.408974,0.00035068,2]
[314474433,1708372238266,-2225.825165,0.00035068,2]
[314474434,1708372238277,-2809.13006908,0.00035068,2]
[314474435,1708372238298,-2339.66581392,0.00035068,2]
[314474436,1708372238308,-366.0000215,0.00035088,2]
[314474437,1708372238318,-155.0,0.00035313,2]
[314474438,1708372238327,-1503.248591,0.00035342,2]
[314474439,1708372238337,-2915.372563,0.00035342,2]
[314474440,1708372238346,-3116.155231,0.00035342,2]
[314474441,1708372238355,-7208.314236,0.00035342,2]
[314474442,1708372238365,-153.11577974,0.00035439,2]
[314474443,1708372238375,-978.27938495,0.00035471,2]
[314474444,1708372238384,-1500.0,0.00035616,10]
[314474445,1708372238393,-800.0,0.00035617,2]
[314474446,1708372238402,-872.36102968,0.00035686,2]
[314474450,1708372240924,-576.41699223,0.00035686,2]
[314474451,1708372240937,-307.33417621,0.00035686,2]
[314474452,1708372240946,-214.58,0.00035781,2]
[314474453,1708372240956,-1018.44767274,0.00035798,2]
[314474454,1708372240988,-1279.14232726,0.00035798,2]
[314474455,1708372240998,-157.28,0.00035894,2]
[314474456,1708372241007,-166.34,0.00035946,2]
[314474457,1708372241019,-1215.09,0.00036078,2]
[314474458,1708372241029,-279.36,0.00036103,2]
[314474459,1708372241038,-203.30162814,0.00036313,2]
[314474460,1708372241048,-153.11577974,0.00036362,2]
[314474461,1708372241060,-2171.87026486,0.00036389,2]
[314474462,1708372241087,-387.06005266,0.00036389,2]
[314474463,1708372241099,-654.9727081,0.00036389,2]
[314474464,1708372241110,-476.04419949,0.00036389,2]
[314474467,1708372241176,-1196.35855813,0.00036389,2]
[314474468,1708372241188,-250.8725,0.00036389,2]
[314474469,1708372241200,-3969.30691023,0.00036389,2]
[314474471,1708372242739,-499.99,0.00035781,2]
[314474472,1708372242749,-34123.64674936,0.00036389,2]
[314474473,1708372242760,-42231.99437897,0.00036389,2]
[314474474,1708372242772,-998.13756384,0.00036389,2]
[314474475,1708372242784,-43230.13194281,0.00036389,2]
[314474476,1708372242794,-43230.13194281,0.00036389,2]
[314474477,1708372242803,-172.29810669,0.00036389,2]
[314474478,1708372242812,-532.67197013,0.00036413,2]
[314474479,1708372242821,-43230.13194281,0.00036428,2]
[314474480,1708372242831,-176.45727145,0.00036482,7]
[314474481,1708372242841,-1665.79998914,0.00036582,2]
[314474482,1708372242850,-1665.79998914,0.00036582,2]
[314474483,1708372242860,-155.0,0.00036683,2]
[314474484,1708372242870,-847.91731703,0.00036798,2]
[314474485,1708372242879,-847.917317,0.00036798,2]
[314474486,1708372242889,-847.917317,0.00036798,2]
[314474487,1708372242898,-847.917317,0.00036798,2]
[314474488,1708372242908,-1360.3010921,0.00036849,2]
[314474489,1708372242917,-3811.63,0.00036949,2]
[314474490,1708372242927,-200.0,0.00036964,2]
[314474491,1708372242937,-850.0,0.00037,3]
[314474492,1708372242946,-150.1,0.00037054,2]
[314474493,1708372242955,-2297.59,0.00037075,2]
[314474494,1708372242965,-1756.11219812,0.00037265,2]
[314474495,1708372242975,-153.11577974,0.00037285,2]
[314474496,1708372242985,-1350.56,0.00037442,2]
[314474497,1708372242995,-1060.51604774,0.00037503,2]
[314474498,1708372243005,-1350.56,0.00037639,2]
[314474499,1708372243014,-180.0,0.00037671,2]
[314474500,1708372243024,-151.0,0.00037675,120]
[314474501,1708372243034,-366.0000215,0.00037681,2]
[314474502,1708372243043,-1000.0,0.00037707,2]
[314474503,1708372243056,-151.199132,0.000378,2]
[314474504,1708372243068,-3018.96870732,0.00037802,2]
[314474505,1708372243077,-1350.56,0.00037836,2]
[314474506,1708372243087,-50490.46807311,0.000379,2]
[314474509,1708372243134,-430718.40450825,0.000379,2]
[314474511,1708372243145,-14653.0,0.000379,2]
[314474512,1708372243157,-1156.7999996,0.000379,2]
[314474513,1708372243168,-583.64889367,0.000379,2]
[314474514,1708372243211,-0.01265494,0.000379,2]
[314474519,1708372245681,-842.00419921,0.00037053,4]
[314474520,1708372245691,-7641.71457427,0.000379,2]
[314474521,1708372245899,-2823.20497129,0.000379,2]
[314474522,1708372245982,-2587.5,0.000379,2]
[314474523,1708372246032,-2341.17013201,0.000379,2]
[314474524,1708372270869,1132811.66432291,0.00023,2]
[314474525,1708372270892,1216379.43995483,0.00023,2]
[314474526,1708372315541,1351.56121703,0.00015,10]
[314474527,1708372329778,150.0,0.000199,3]
[314474528,1708372329798,150.0,0.000199,3]
[314474529,1708372329818,150.0,0.000199,3]
[314474530,1708372329839,150.0,0.000199,3]
[314474531,1708372329860,150.0,0.000199,3]
[314474532,1708372329880,150.0,0.000199,3]
[314474533,1708372329900,150.0,0.000199,3]
[314474534,1708372329920,100.70299976,0.000199,3]
[314474535,1708372386137,150.0,0.000225,2]
[314474536,1708372386159,150.0,0.000225,2]
[314474537,1708372386180,150.0,0.000225,2]
[314474538,1708372386201,239.76700024,0.000225,2]
[314474539,1708372386222,60.23299976,0.000225,2]
[314474540,1708372393716,150.0,9.8e-05,2]
[314474541,1708372394309,55.0,9.8e-05,2]
[314474542,1708372397653,240.14944708,0.000101,2]
[314474543,1708372434891,329669.43778599,0.00023,2]
[314474544,1708372452164,3723.60197752,0.0002,2]
[314474545,1708372461775,155.9802843,0.0002,2]
[314474546,1708372468512,156.55221049,0.00022,2]
[314474547,1708372770871,156.10013128,0.00023099,2]
[314474548,1708372806995,-515.97745498,0.00023122,2]
[314474549,1708372807029,-181.77292289,0.00023123,2]
[314474550,1708372807066,-155.0,0.00023123,2]
[314474551,1708372807099,-892.60575342,0.00023124,2]
[314474552,1708372807132,-4665.69764438,0.0002313,2]
[314474553,1708372807165,-150.0,0.00023199,2]
[314474554,1708372807201,-300.0,0.00023199,2]
[314474555,1708372807236,-18181.82425799,0.000232,2]
[314474556,1708372807255,-515.97745498,0.000232,2]
[314474557,1708372807274,-181.77292289,0.000232,2]
[314474558,1708372807298,-155.0,0.000232,2]
[314474559,1708372807315,-892.60575342,0.000232,2]
[314474560,1708372807327,-3650.63987005,0.000232,2]
[314474561,1708372807342,-150.0,0.000232,2]
[314474562,1708372807354,-300.0,0.000232,2]
[314474563,1708372807378,-2891.87987005,0.000232,2]
[314474564,1708372807387,-758.76,0.00023467,2]
[314474566,1708373059918,1047.62,0.00023374,10]
[314474567,1708373060043,1047.62,0.00023947,10]
[314474568,1708373060117,1047.62,0.0002452,10]
[314474569,1708373107402,9435.628547,0.00023095,2]
[314474570,1708373123593,1074.84,0.00021445,2]
[314474572,1708373229118,-306.27129382,0.00023211,2]
[314474573,1708373284413,299.99,0.00023388,7]
[314474574,1708373359108,-515.97745498,0.00023137,2]
[314474575,1708373359128,-2535.92,0.00023138,2]
[314474576,1708373359407,-250.0,0.00023161,2]
[314474577,1708373359427,-1000.0,0.00023177,2]
[314474578,1708373359447,-548.09804502,0.00023195,2]
[314474579,1708373359477,-1451.90195498,0.00023195,2]
[314474580,1708373359496,-150.0,0.00023211,2]
[314474581,1708373359518,-150.93857842,0.00023212,2]
[314474582,1708373359537,-923.2,0.00023231,2]
[314474583,1708373359557,-312.89,0.00023322,2]
[314474584,1708373359579,-313.46,0.00023322,2]
[314474585,1708373359601,-885.75,0.00023342,2]
[314474586,1708373359621,-250.0,0.00023363,2]
[314474587,1708373359640,-341.58,0.00023372,2]
[314474588,1708373359660,-168.01,0.00023388,2]
[314474589,1708373359679,-1740.11,0.00023402,2]
[314474590,1708373359699,-150.69443588,0.00023444,2]
[314474591,1708373359719,-499.99,0.00023444,2]
[314474592,1708373359738,-150.99,0.00023444,2]
[314474593,1708373359762,-313.46,0.00023445,2]
[314474594,1708373359782,-152.53829154,0.00023562,2]
[314474595,1708373359805,-313.46,0.00023568,2]
[314474596,1708373359824,-200.0,0.00023626,2]
[314474597,1708373359844,-500.0,0.00023626,2]
[314474598,1708373359865,-313.46,0.00023691,2]
[314474599,1708373359886,-1074.84,0.00023709,2]
[314474600,1708373359908,-313.46,0.00023813,2]
[314474601,1708373359927,-200.0,0.00023881,2]
[314474602,1708373359947,-178.55,0.00023927,2]
[314474603,1708373359967,-249.98,0.00023933,2]
[314474604,1708373359987,-500.0,0.00023933,2]
[314474605,1708373360013,-313.46,0.00023936,2]
[314474606,1708373360035,-405.15,0.00024007,2]
[314474607,1708373360055,-500.0,0.00024036,2]
[314474608,1708373360077,-313.46,0.00024059,2]
[314474609,1708373360099,-405.15,0.00024073,2]
[314474610,1708373360125,-405.15,0.00024139,2]
[314474611,1708373360148,-200.0,0.00024145,2]
[314474612,1708373360170,-313.46,0.00024182,2]
[314474613,1708373360191,-405.15,0.00024205,2]
[314474614,1708373360212,-316.81708283,0.0002425,2]
[314474615,1708373360233,-405.15,0.00024271,2]
[314474616,1708373360258,-313.46,0.00024304,2]
[314474617,1708373360280,-2705.0,0.00024334,2]
[314474618,1708373360300,-405.15,0.00024336,2]
[314474619,1708373360320,-238.2149,0.00024347,2]
[314474620,1708373360340,-2510.15,0.00024384,2]
[314474621,1708373360360,-228.67175635,0.00024384,2]
[314474622,1708373368107,-771.31824365,0.00024384,2]
[314474623,1708373368129,-405.15,0.00024402,2]
[314474624,1708373368152,-313.46,0.00024427,2]
[314474625,1708373368173,-1797.30274922,0.00024447,2]
[314474634,1708373431863,-2568.85031589,0.00023765,2]
[314474635,1708373431873,-23900.0,0.00023766,2]
[314474636,1708373431883,-2705.0,0.00023851,2]
[314474637,1708373431894,-500.0,0.00023851,2]
[314474638,1708373431904,-5768.61,0.00024384,2]
[314474639,1708373431914,-217.39725078,0.00024447,2]
[314474640,1708373431924,-405.15,0.00024468,2]
[314474641,1708373431934,-405.15,0.00024534,2]
[314474642,1708373431943,-416.95,0.00024548,2]
[314474643,1708373431953,-313.46,0.0002455,2]
[314474644,1708373431963,-1060.51604774,0.00024561,2]
[314474645,1708373431973,-13509.25877074,0.00024562,2]
[314474646,1708373431983,-156.10013124,0.00024569,2]
[314474647,1708373431992,-9999.99,0.00024569,2]
[314474648,1708373432002,-595.07050228,0.00024586,2]
[314474649,1708373432012,-4609.81,0.00024586,2]
[314474650,1708373432022,-150.99,0.00024586,2]
[314474651,1708373432032,-405.15,0.000246,2]
[314474652,1708373432042,-452.79,0.00024647,3]
[314474653,1708373432053,-443.9417137,0.00024655,2]
[314474654,1708373432062,-500.0,0.00024656,2]
[314474655,1708373432073,-211.2845134,0.00024657,2]
[314474656,1708373432083,-22640.32723978,0.00024657,2]
[314474657,1708373432114,-104998.50482415,0.00024657,2]
[314474658,1708373432127,-2572.00156105,0.00024657,2]
[314474659,1708373432136,-250.0,0.00024658,2]
[314474660,1708373432145,-500.0,0.00024658,2]
[314474661,1708373432154,-405.15,0.00024666,2]
[314474662,1708373432163,-313.46,0.00024673,2]
[314474663,1708373432173,-405.15,0.00024731,2]
[314474664,1708373432182,-313.46,0.00024795,2]
[314474665,1708373432191,-405.15,0.00024797,2]
[314474666,1708373432200,-405.15,0.00024863,2]
[314474667,1708373432209,-313.46,0.00024918,2]
[314474668,1708373432219,-405.15,0.00024929,2]
[314474669,1708373432228,-161.52,0.00024934,2]
[314474670,1708373432238,-178.73,0.0002497,2]
[314474672,1708373432246,-405.15,0.00024995,2]
[314474674,1708373432255,-2344.72651256,0.00025,2]
[314474676,1708373432264,-18728.82245459,0.00025,4]
[314474677,1708373432274,-851.24473156,0.00025,2]
[314474678,1708373432283,-313.46,0.00025041,2]
[314474679,1708373432292,-1740.11,0.00025045,2]
[314474681,1708373432301,-405.15,0.00025061,2]
[314474683,1708373432310,-204.14700503,0.00025088,2]
[314474684,1708373432319,-155.73042078,0.00025088,2]
[314474685,1708373432328,-181.67593929,0.00025088,2]
[314474687,1708373432337,-412.44,0.00025089,2]
[314474688,1708373432346,-61561.24501453,0.0002509,2]
[314474689,1708373432355,-21498.1429959,0.0002509,2]
[314474696,1708373438141,-1024.31,0.0002509,2]
[314474697,1708373438332,-16036.85504437,0.0002509,2]
[314474698,1708373438362,-1542.96571529,0.0002509,2]